Cogmind - Beta 16.1 @@@ ROGUE MODE // 2026.02.08 @ 22:44:22 // AFD2020/Player2 Player: cptwinky Result: Core destroyed Performance ------------- Evolutions (8) 4000 Regions Visited (23) 4600 Robots Destroyed (222) 1110 Value Destroyed (10419) 10419 Prototype IDs (67) 1340 Alien Tech Used (1) 200 Bonus (8373) 8373 TOTAL SCORE: 30042 Bonus ------- High Alert Combat Kills 1782 Follower Combat Kills 6117 Network Hubs Disabled 200 Aligned with FarCom 300 Met Data Miner 300 Met Imprinter 300 Met R17 at Cetus 500 Met R17 at Research 2000 Friendly Fire -3126 Cogmind --------- Core Integrity 0/1450 Matter 290/300 Energy 460/460 System Corruption 6% Temperature Hot (260) Movement Treading (160) Location -2/Research Parts ------- > --- POWER (3) -------- Light Antimatter Reactor Particle Reactor Micro Antimatter Reactor > --- PROPULSION (6) --- Centrium Heavy Treads Centrium Heavy Treads Advanced Heavy Siege Treads > --- UTILITY (12) ----- Advanced Heat Sink Advanced Heat Sink High-capacity Storage Unit Advanced Target Analyzer Advanced Target Analyzer Core Analyzer Improved Weapon Cycler Centrium Heavy Armor Plating Hacking Suite Hacking Suite > --- WEAPON (3) ------- Plasma Rifle Plasma Rifle Dispersion Rifle > --- INVENTORY (20) --- Light Particle Reactor Advanced Heavy Siege Treads Advanced Cooling System Energy Well (350) High-capacity Matter Pod (200) Advanced Signal Interpreter Hacking Suite Improved Hacking Suite Authchip [Propulsion] Authchip [Propulsion] Hacking Drone Bay (1/1) Phase Gun Compact HERF Cannon Enhanced Nova Cannon Hypervelocity Mass Driver Advanced Datajack Chainsword Peak State ------------ > --- POWER ------------ Light Antimatter Reactor Particle Reactor Micro Antimatter Reactor > --- PROPULSION ------- Centrium Heavy Treads Centrium Heavy Treads Advanced Heavy Siege Treads > --- UTILITY ---------- Cryofiber Web Advanced Heat Sink Advanced Heat Sink High-capacity Storage Unit Advanced Target Analyzer Advanced Target Analyzer Core Analyzer Improved Weapon Cycler Centrium Heavy Armor Plating Hacking Suite Hacking Suite > --- WEAPON ----------- Plasma Rifle Plasma Rifle Fusion Bomb Launcher > --- INVENTORY -------- Light Particle Reactor Advanced Heavy Siege Treads Advanced Cooling System Energy Well High-capacity Matter Pod Advanced Signal Interpreter Hacking Suite Improved Hacking Suite Authchip [Propulsion] Authchip [Propulsion] Hacking Drone Bay Phase Gun Dispersion Rifle Compact HERF Cannon Enhanced Nova Cannon Hypervelocity Mass Driver Advanced Datajack Chainsword [Rating: 168] Favorites ----------- Power Fission Core Engine Improved Deuterium Engine Power Core Fission Core Reactor Light Antimatter Reactor Propulsion Light Treads Treads Light Treads Utility High-capacity Storage Unit Device Advanced Heat Sink Storage High-capacity Storage Unit Processor Core Analyzer Hackware Hacking Suite Protection Improved Heavy Armor Plating Weapon Plasma Rifle Energy Gun Plasma Rifle Energy Cannon Enhanced Nova Cannon Ballistic Gun Light Assault Rifle Launcher Mini Grenade Launcher Special Weapon Remote Datajack Impact Weapon Mace Slashing Weapon Chainsword Special Melee Weapon Improved Datajack Build | -11 -10 -10 -10 -9 -8 -7 -7 -7 -7 -6 -6 -6 -6 -6 -5 -5 -4 -4 -4 -4 -4 -3 -2 ------- Run | Yrd Mat Min Exi Min Mat Fac Low Low Dat Pro Fac Low Low Zio Pro Fac Fac Ext Cet Arc Hub Res Res Slots Evolved 16 | . . . . . 4 2 . . . . 2 . . . . 2 2 . . . . 2 2 Power 2 | . . . . . . . . . . . 1 . . . . . . . . . . 1 . Propulsion 3 | . . . . . 1 1 . . . . . . . . . . 1 . . . . . . Utility 10 | . . . . . 2 1 . . . . 1 . . . . 2 1 . . . . 1 2 Weapon 1 | . . . . . 1 . . . . . . . . . . . . . . . . . . Parts Attached 146 | 6 . 7 4 . 13 23 . 5 2 3 15 1 4 6 . 10 3 10 6 3 3 7 15 Power 16 | 1 . 1 1 . . 3 . . . . 2 . . . . 1 1 2 . 1 . 1 2 Engine 5 | 1 . 1 . . . . . . . . 1 . . . . 1 1 . . . . . . Core 7 | . . . 1 . . 3 . . . . 1 . . . . . . 1 . 1 . . . Reactor 4 | . . . . . . . . . . . . . . . . . . 1 . . . 1 2 Propulsion 35 | 2 . 1 . . 4 8 . 1 . 1 3 . . 1 . 4 . 3 2 . 2 2 1 Treads 35 | 2 . 1 . . 4 8 . 1 . 1 3 . . 1 . 4 . 3 2 . 2 2 1 Leg . | . . . . . . . . . . . . . . . . . . . . . . . . Wheel . | . . . . . . . . . . . . . . . . . . . . . . . . Hover . | . . . . . . . . . . . . . . . . . . . . . . . . Flight . | . . . . . . . . . . . . . . . . . . . . . . . . Utility 56 | 1 . 2 1 . 4 6 . 4 . 1 6 1 2 3 . 5 . 3 3 . 1 4 9 Device 25 | . . . . . 1 1 . 3 . . 3 1 2 3 . 2 . 2 2 . . 1 4 Storage 5 | 1 . 1 1 . 1 . . . . . . . . . . . . . . . . 1 . Processor 6 | . . . . . . 1 . . . 1 . . . . . 1 . . . . . . 3 Hackware 8 | . . . . . 1 1 . . . . 1 . . . . 1 . . . . 1 1 2 Protection 12 | . . 1 . . 1 3 . 1 . . 2 . . . . 1 . 1 1 . . 1 . Artifact . | . . . . . . . . . . . . . . . . . . . . . . . . Weapon 39 | 2 . 3 2 . 5 6 . . 2 1 4 . 2 2 . . 2 2 1 2 . . 3 Energy Gun 23 | 1 . 1 . . 3 4 . . . 1 2 . 2 2 . . 2 2 1 1 . . 1 Energy Cannon 2 | . . . . . . . . . . . 1 . . . . . . . . . . . 1 Ballistic Gun 4 | 1 . 1 1 . 1 . . . . . . . . . . . . . . . . . . Ballistic Cannon . | . . . . . . . . . . . . . . . . . . . . . . . . Launcher 4 | . . . . . 1 1 . . . . 1 . . . . . . . . . . . 1 Special Weapon 1 | . . . . . . . . . 1 . . . . . . . . . . . . . . Impact Weapon 1 | . . 1 . . . . . . . . . . . . . . . . . . . . . Slashing Weapon 1 | . . . . . . 1 . . . . . . . . . . . . . . . . . Piercing Weapon . | . . . . . . . . . . . . . . . . . . . . . . . . Special Melee Weapon 3 | . . . 1 . . . . . 1 . . . . . . . . . . 1 . . . Unidentified Prototypes 11 | . . . . . . . . 1 . 1 1 . . 2 . . . . 3 . . 1 2 Parts Lost 24 | . . . . . . . . 1 . 5 3 . 1 . . 2 1 . 2 . . . 9 Power 2 | . . . . . . . . . . . . . . . . 1 . . . . . . 1 Propulsion 5 | . . . . . . . . . . 2 2 . . . . 1 . . . . . . . Utility 12 | . . . . . . . . 1 . 2 . . 1 . . . . . 2 . . . 6 Weapon 5 | . . . . . . . . . . 1 1 . . . . . 1 . . . . . 2 Highest Loss Streak 3 | . . . . . . . . 1 . 2 1 . 1 . . 1 1 . 2 . . . 3 To Critical Strikes . | . . . . . . . . . . . . . . . . . . . . . . . . Average Backups 17 | 3 5 8 10 14 15 19 20 17 18 16 17 17 17 18 19 18 19 19 18 19 19 17 18 Power 1 | . 1 1 1 2 2 2 1 1 1 1 . 1 1 1 1 1 1 1 1 1 1 . 1 Propulsion 1 | 1 . . 1 2 1 1 2 1 2 . . . 1 1 1 1 1 . . 1 1 . . Utility 8 | . . 2 4 4 5 7 8 6 6 6 8 9 8 9 10 9 12 12 11 11 12 11 10 Weapon 5 | . 2 3 3 3 4 6 7 7 8 6 6 6 6 6 6 5 4 4 5 4 4 4 5 Tool/Special . | . . . . . . . . . . . . . . . . . . . . . . . . Unused Backups 49 | . 5 4 . 1 6 6 . 1 . . 2 1 . 1 . 4 1 3 . 1 . . 13 Power 6 | . 1 . . . . 2 . . . . . . . . . 1 . 1 . . . . 1 Propulsion 5 | . 2 . . . 2 . . . . . . . . . . . . . . . . . 1 Utility 21 | . . 2 . 1 2 3 . 1 . . 1 1 . 1 . 1 . . . 1 . . 7 Weapon 17 | . 2 2 . . 2 1 . . . . 1 . . . . 2 1 2 . . . . 4 Tool/Special . | . . . . . . . . . . . . . . . . . . . . . . . . Average Slot Usage (%) 93 | . 94 100 100 100 96 99 100 99 100 97 93 93 93 92 93 93 89 91 85 85 85 85 85 Engine 3 | . 14 14 . . . . . . . . 6 6 6 6 6 6 10 2 . . . . . Core 5 | . . . 13 14 9 7 7 7 7 7 6 6 6 6 6 3 . 3 5 5 5 4 3 Reactor 1 | . . . . . . . . . . . . . . . . . . 4 5 5 5 9 8 Treads 27 | . 27 28 28 28 26 30 30 31 35 35 30 31 31 31 31 26 29 27 21 20 20 18 15 Device 12 | . . . . . 8 9 15 14 14 11 11 12 12 11 12 16 15 18 20 20 20 21 22 Storage 7 | . 14 14 14 14 9 7 7 7 7 7 6 6 6 6 6 5 5 5 5 5 5 4 4 Processor 4 | . . . . . . 4 7 7 7 7 6 6 6 6 6 5 5 5 5 5 5 4 7 Hackware 2 | . . . . . 6 5 . . . . . . . . . 3 5 5 5 5 5 4 6 Protection 7 | . 9 14 14 14 9 8 7 6 7 7 5 6 6 6 6 5 5 5 4 5 5 4 4 Energy Gun 15 | . 14 12 14 14 14 16 23 17 . 21 17 17 17 17 17 15 13 14 14 14 15 13 11 Ballistic Gun 3 | . 14 14 10 14 12 4 . . . . . . . . . . . . . . . . . Peak Build Rating 168 | 6 7 9 12 12 28 43 43 43 43 46 63 63 65 69 65 84 88 106 128 125 126 145 168 Average Rating 63 | 4 6 7 11 12 22 35 42 41 42 42 58 62 63 66 64 75 86 97 117 123 123 136 153 On Entrance 57 | . 6 7 9 12 12 28 43 43 43 43 44 61 60 65 65 65 84 87 106 123 124 123 138 Avg Prop Armor Cover (%) 5 | . . . . . . . . 5 5 5 3 . . . . . . . . 21 . . . Naked Turns . | . . . . . . . . . . . . . . . . . . . . . . . . Heaviest Build 134 | 11 12 19 31 31 60 70 70 71 71 71 89 87 89 91 91 98 92 95 93 93 93 123 134 Greatest Support 240 | 40 40 40 40 40 60 88 88 88 80 88 118 118 118 118 108 136 159 185 217 217 217 214 240 Greatest Overweight (x) 30 | . . . . . . . . . . 1 . . . . . . . . . 30 . . . Average Overweight (x) . | . . . . . . . . . . . . . . . . . . . . 13 . . . Largest Inventory Capacity 20 | 8 8 10 15 15 20 20 20 20 20 20 20 20 20 20 20 20 20 20 20 20 20 20 20 Average Capacity 18 | 6 8 9 11 15 16 20 20 20 20 20 20 20 20 20 20 20 20 20 20 20 20 20 20 Most Carried 20 | 6 8 10 12 15 20 20 20 20 20 20 20 20 20 20 20 20 20 20 20 20 20 20 20 Average Carried 17 | 3 5 8 10 14 15 19 20 18 20 18 19 19 19 19 20 19 19 19 19 20 20 18 19 Final Capacity 20 | 8 8 10 15 15 20 20 20 20 20 20 20 20 20 20 20 20 20 20 20 20 20 20 20 Final Carried 20 | 6 8 10 12 15 20 20 20 20 20 18 20 20 20 20 20 20 20 20 20 20 20 20 18 Class Distribution -------------------- 28% | Scavenger-Tank 23% | Scavenger-Skirmisher 11% | Scavenger-Mutant 9% | Mutant 9% | Trapper-Gunner 5% | Gunner 4% | Derelict-Gunner 3% | Trapper-Skirmisher 3% | Scavenger-Gunner Dominant Class ---------------- Mutant | -10/Materials Mutant | -10/Mines Scavenger-Mutant | -10/Exiles Scavenger-Mutant | -9/Mines Scavenger-Skirmisher | -8/Materials Scavenger-Tank | -7/Factory Scavenger-Tank | -7/Lower Caves Scavenger-Mutant | -7/Lower Caves Scavenger-Mutant | -7/Data Miner Scavenger-Tank | -6/Proximity Caves Trapper-Skirmisher | -6/Factory Trapper-Gunner | -6/Lower Caves Trapper-Gunner | -6/Lower Caves Gunner | -6/Zion Derelict-Gunner | -5/Proximity Caves Scavenger-Skirmisher | -5/Factory Scavenger-Skirmisher | -4/Factory Scavenger-Skirmisher | -4/Extension Scavenger-Tank | -4/Cetus Scavenger-Tank | -4/Archives Scavenger-Tank | -4/Hub_04(d) Scavenger-Tank | -3/Research Scavenger-Tank | -2/Research Resources | -11 -10 -10 -10 -9 -8 -7 -7 -7 -7 -6 -6 -6 -6 -6 -5 -5 -4 -4 -4 -4 -4 -3 -2 ----------- Run | Yrd Mat Min Exi Min Mat Fac Low Low Dat Pro Fac Low Low Zio Pro Fac Fac Ext Cet Arc Hub Res Res Matter Collected 4230 | 204 80 104 . 39 320 546 29 208 . 117 329 224 285 90 186 161 98 234 102 40 24 164 646 Remotely . | . . . . . . . . . . . . . . . . . . . . . . . . Salvage Created 9048 | 17 78 130 . 90 655 985 168 521 . 356 528 493 199 . 195 1488 273 623 237 90 . 254 1668 Parts 391 | 4 7 10 . 1 31 58 5 19 . 12 24 19 11 . 11 70 12 24 5 2 . 8 58 Haulers Intercepted 4 | . . . . . 2 2 . . . . . . . . . . . . . . . . . Recyclers Shooed 11 | . 1 . . 1 . . . . . . 4 . . . . 4 . . . . . 1 . Parts Field Recycled . | . . . . . . . . . . . . . . . . . . . . . . . . Retrieved Matter . | . . . . . . . . . . . . . . . . . . . . . . . . Parts Self-Destructed 95 | . . . . . . . 7 12 . 25 . 18 14 4 15 . . . . . . . . Prevented 2 | . . . . . . . . . . . . 2 . . . . . . . . . . . Parts Restored . | . . . . . . . . . . . . . . . . . . . . . . . . Kills | -11 -10 -10 -10 -9 -8 -7 -7 -7 -7 -6 -6 -6 -6 -6 -5 -5 -4 -4 -4 -4 -4 -3 -2 ------- Run | Yrd Mat Min Exi Min Mat Fac Low Low Dat Pro Fac Low Low Zio Pro Fac Fac Ext Cet Arc Hub Res Res Combat Hostiles Destroyed 178 | . 4 5 . . 13 22 3 8 . 7 14 13 8 . 9 23 4 6 4 1 . 2 32 Melee 1 | . . . . . . 1 . . . . . . . . . . . . . . . . . Guns 101 | . 4 5 . . 7 12 3 3 . 7 6 7 1 . 1 16 3 6 3 1 . 2 14 Cannons 1 | . . . . . . . . . . . . . . . . . . . . . . . 1 AOE 65 | . . . . . 6 9 . 4 . . 8 6 7 . 8 3 . . . . . . 14 Classes Destroyed 23 | 1 2 3 . 1 5 5 . 3 . . . 1 . . . 2 . . . . . . . Worker 12 | . . . . . . 2 . . . . . . . . . 3 . 1 . . . 2 4 Builder 7 | . . . . . 1 2 . . . . 1 . . . . 1 . 1 . . . . 1 Tunneler 4 | 1 . . . . . . . . . . 2 . . . . 1 . . . . . . . Hauler 4 | . . . . . 2 2 . . . . . . . . . . . . . . . . . Recycler 3 | . . . . 1 . . . . . . . . . . . . . 1 . . . . 1 Minesweeper 1 | . . . . . . . . 1 . . . . . . . . . . . . . . . Mechanic 2 | . . . . . 1 . . . . . . . . . . . . . . . . . 1 Operator 4 | . 1 . . . 1 . . . . . . . . . . . . . . . . 1 1 Watcher 4 | . . . . . . 1 . . . . . . . . . 2 . . . . . 1 . Swarmer 45 | . 4 2 . . 3 5 . 4 . 2 . 6 5 . 8 3 . . . . . . 3 Grunt 63 | . . 1 . . 7 8 1 2 . 4 10 3 2 . . 8 2 4 . . . . 11 Brawler 8 | . . . . . . 2 . . . . 3 2 . . . 1 . . . . . . . Duelist 4 | . . . . . 1 . 1 1 . . . . . . . . . 1 . . . . . Protector 2 | . . . . . . 1 . . . . . . . . . . . . . . . . 1 Researcher 1 | . . . . . . . . 1 . . . . . . . . . . . . . . . Sentry 16 | . . 1 . . 1 3 1 1 . . 1 1 . . 1 4 . . . 1 . . 1 Specialist 3 | . . . . . . . . . . . . . . . . 2 . . . . . . 1 Hunter 17 | . . . . . 1 1 . . . 1 . . 1 . . 1 1 . . . . 2 9 Programmer 12 | . . . . . . 2 . . . . . . . . . 3 1 . . . . . 6 Heavy 1 | . . . . . . . . . . . . . . . . 1 . . . . . . . Behemoth 2 | . . . . . . . . . . . . 1 . . . . . 1 . . . . . Cetus Guard 4 | . . . . . . . . . . . . . . . . . . . 4 . . . . Assembled 1 | . . 1 . . . . . . . . . . . . . . . . . . . . . Thug 1 | . . . . . . . . 1 . . . . . . . . . . . . . . . Savage 1 | . . . . . . . . 1 . . . . . . . . . . . . . . . Mutant 1 | . . . . . . . . 1 . . . . . . . . . . . . . . . Best Kill Streak 17 | 1 3 2 . 1 8 11 2 4 . 2 7 5 5 . 4 3 3 5 4 1 . 5 17 Combat Bots Only 13 | . 2 2 . . 6 7 2 4 . 2 6 5 5 . 4 3 3 3 4 1 . 2 13 Max Kills in Single Turn 6 | 1 1 2 . 1 2 5 1 3 . 1 2 3 2 . 4 3 1 1 1 1 . 1 6 Gunslinging 1 | . . 1 . . . . . . . . . . . . . 1 . . . . . . . Exploded 4 | . . . . . 2 2 . 3 . . 2 3 2 . 4 3 . . . . . . 3 Melee 1 | . . . . . . 1 . . . . . . . . . . . . . . . . . Uniques/NPCs Destroyed . | . . . . . . . . . . . . . . . . . . . . . . . . Combat | -11 -10 -10 -10 -9 -8 -7 -7 -7 -7 -6 -6 -6 -6 -6 -5 -5 -4 -4 -4 -4 -4 -3 -2 -------- Run | Yrd Mat Min Exi Min Mat Fac Low Low Dat Pro Fac Low Low Zio Pro Fac Fac Ext Cet Arc Hub Res Res Hostile Shots Fired 836 | . 26 29 . . 27 104 22 13 . 53 79 41 30 . 7 122 13 9 52 2 . 12 195 Missed 302 | . 16 11 . . 8 41 4 1 . 18 33 15 12 . 2 43 2 4 20 2 . 6 64 Hits 534 | . 10 18 . . 19 63 18 12 . 35 46 26 18 . 5 79 11 5 32 . . 6 131 Melee 2 | . . . . . . . 2 . . . . . . . . . . . . . . . . Projectile 532 | . 10 18 . . 19 63 16 12 . 35 46 26 18 . 5 79 11 5 32 . . 6 131 AOE 2 | . . . . . . . . . . . . . . . . 2 . . . . . . . Critical Strikes 28 | . . 1 . . . 1 2 . . . 3 . 1 . . 2 1 3 6 . . . 8 Part Disruptions 2 | . . . . . . . . . . . . . . . . . . . . . . . 2 Damage Taken 10850 | . 86 251 . . 289 626 248 154 . 663 774 358 393 28 120 1994 292 173 924 47 . 86 3344 Core 571 | . . 47 . . 47 34 . . . 52 41 15 28 . . 168 20 55 25 . . . 39 Absorbed by Shields 669 | . . . . . . 106 40 24 . 56 . . . . . 127 . . . . . 30 286 Ignored by Resistances 86 | . . . . . . 39 29 3 . . . . . . . . . . 15 . . . . Regen/Repaired (Parts) 2358 | . 28 . . . 139 . . . . . 178 . . 1098 . 60 . 340 . . . 490 25 Core Remaining (%) 76 | 100 . . . 70 59 . . . . 54 . . . . 69 71 . . . . 89 97 . Volleys Fired 478 | 3 13 14 . 3 50 39 6 10 . 20 53 18 13 . 10 72 12 19 12 5 . 11 95 Largest 3 | 2 2 2 . 2 3 3 3 3 . 3 3 3 3 . 3 3 3 3 3 3 . 3 3 Hottest 270 | 70 70 70 . 70 135 216 216 216 . 216 191 190 190 . 225 225 240 225 225 225 . 225 270 Shots Fired 1141 | 6 25 28 . 6 128 104 17 19 . 62 99 45 19 . 20 206 32 58 36 15 . 33 183 Gun 1017 | 6 25 28 . 6 122 94 17 17 . 62 72 41 9 . 15 204 26 58 36 15 . 33 131 Cannon 53 | . . . . . . . . . . . 10 . . . . . 6 . . . . . 37 Launcher 71 | . . . . . 6 10 . 2 . . 17 4 10 . 5 2 . . . . . . 15 Special . | . . . . . . . . . . . . . . . . . . . . . . . . Kinetic 116 | 3 13 14 . 3 72 11 . . . . . . . . . . . . . . . . . Thermal 954 | 3 12 14 . 3 50 83 17 17 . 62 82 41 9 . 15 204 32 58 36 15 . 33 168 Explosive 71 | . . . . . 6 10 . 2 . . 17 4 10 . 5 2 . . . . . . 15 Electromagnetic . | . . . . . . . . . . . . . . . . . . . . . . . . Robot Hit Streak 16 | 2 3 7 . 5 10 8 14 9 . 13 10 7 3 . 8 15 4 11 9 4 . 6 16 Robot Miss Streak 6 | 2 4 3 . 1 6 3 5 3 . 6 3 4 2 . 1 4 4 2 2 2 . 2 4 Penetration Max . | . . . . . . . . . . . . . . . . . . . . . . . . Secondary Targets 22 | . . 1 . . 2 2 . . . 1 . 2 . . . 5 . 2 . . . 1 6 Max Gunslinging Chain 1 | . . 1 . . 1 1 . . . 1 . 1 . . . 1 . 1 . . . 1 1 Shots Hit Robots 749 | 4 11 18 4 5 69 64 14 23 1 43 54 33 10 1 13 145 16 57 27 17 . 25 95 Core Hits 554 | 1 7 9 . 3 36 66 12 23 . 33 71 29 18 . 14 67 10 22 15 6 . 14 98 Critical Kills 1 | . . . . . . . . . . . . . . . . . . . . . . . 1 Critical Parts Destroyed 2 | . . . . . . . . . . . . . . . . . . . . . . . 2 Critical Strikes 47 | . 1 2 . . 2 7 . . . 3 1 1 . . . 7 2 6 2 . . 3 10 Burn 44 | . 1 2 . . 2 7 . . . 3 1 1 . . . 7 2 6 2 . . 3 7 Destroy 3 | . . . . . . . . . . . . . . . . . . . . . . . 3 Melee Attacks 65 | . . 7 4 . . 8 . 16 1 . 3 . . 1 . 2 . 15 . 8 . . . Impact 7 | . . 7 . . . . . . . . . . . . . . . . . . . . . Slashing 35 | . . . . . . 8 . 16 . . 3 . . . . 2 . . . 6 . . . Piercing . | . . . . . . . . . . . . . . . . . . . . . . . . Sneak Attacks 35 | . . . 4 . . . . 8 1 . . . . 1 . 1 . 15 . 5 . . . Combat Hostiles 1 | . . . . . . . . . . . . . . . . 1 . . . . . . . Follow-up Attacks . | . . . . . . . . . . . . . . . . . . . . . . . . Damage Inflicted 26383 | 47 141 192 . 55 1444 2602 317 1135 . 1037 2666 1128 1005 . 785 3615 409 1089 659 563 . 613 6881 Guns 14461 | 41 125 187 . 52 849 1046 317 342 . 1037 1110 662 169 . 257 3273 316 1037 659 242 . 613 2127 Cannons 133 | . . . . . . . . . . . . . . . . . 93 . . . . . 40 Explosions 10537 | . . . . . 595 1457 . 228 . . 1550 466 836 . 528 221 . . . . . . 4656 Melee 1012 | . . . . . . 68 . 565 . . . . . . . 58 . . . 321 . . . Ramming 240 | 6 16 5 . 3 . 31 . . . . 6 . . . . 63 . 52 . . . . 58 Kinetic 673 | 16 50 87 . 15 401 104 . . . . . . . . . . . . . . . . . Thermal 13921 | 25 75 100 . 37 448 942 317 342 . 1037 1110 662 169 . 257 3273 409 1037 659 242 . 613 2167 Explosive 10537 | . . . . . 595 1457 . 228 . . 1550 466 836 . 528 221 . . . . . . 4656 Electromagnetic . | . . . . . . . . . . . . . . . . . . . . . . . . Impact . | . . . . . . . . . . . . . . . . . . . . . . . . Slashing 1012 | . . . . . . 68 . 565 . . . . . . . 58 . . . 321 . . . Piercing . | . . . . . . . . . . . . . . . . . . . . . . . . Highest Corruption 6 | . . . . . . 4 4 4 4 4 . . . . . 3 . 1 1 1 1 . 6 Average Corruption 2 | . . . . . . 2 4 4 4 4 . . . . . 2 . 1 1 1 1 . 4 Corruption Purged . | . . . . . . . . . . . . . . . . . . . . . . . . Corruption Blocked . | . . . . . . . . . . . . . . . . . . . . . . . . Effects 119 | . . . . . . 31 15 14 4 14 . . . . . 10 . 12 3 3 1 . 12 Message Errors 36 | . . . . . . 10 7 4 1 6 . . . . . 1 . 2 1 1 1 . 2 Matter Fused 23 | . . . . . . 6 2 3 . 2 . . . . . 1 . 5 1 . . . 3 Heat Flow Errors 18 | . . . . . . 2 . 3 2 2 . . . . . 4 . . . 1 . . 4 Energy Discharges 14 | . . . . . . 6 1 1 . . . . . . . 2 . 1 . 1 . . 2 Parts Rejected 1 | . . . . . . 1 . . . . . . . . . . . . . . . . . Parts Fused 3 | . . . . . . 1 . . . . . . . . . . . 1 1 . . . . Data Loss (minor) 10 | . . . . . . 2 2 2 . 2 . . . . . 1 . 1 . . . . . Data Loss (major) 7 | . . . . . . 2 1 1 1 . . . . . . 1 . 1 . . . . . Misfires 5 | . . . . . . 1 1 . . 2 . . . . . . . 1 . . . . . Alerts 2 | . . . . . . . 1 . . . . . . . . . . . . . . . 1 Overload Shots . | . . . . . . . . . . . . . . . . . . . . . . . . Overflow Damage 554 | . . . . . . 2 . 62 . . 35 3 60 . 38 . . . . 111 . . 243 Projectiles . | . . . . . . . . . . . . . . . . . . . . . . . . Explosions 379 | . . . . . . . . . . . 35 3 60 . 38 . . . . . . . 243 Melee 175 | . . . . . . 2 . 62 . . . . . . . . . . . 111 . . . Knockbacks 2 | . . . . . . . . . . . . . . . . . . 2 . . . . . Impact 2 | . . . . . . . . . . . . . . . . . . 2 . . . . . Kinetic . | . . . . . . . . . . . . . . . . . . . . . . . . Secondary . | . . . . . . . . . . . . . . . . . . . . . . . . Self-Inflicted Damage 362 | . . . . . . 23 . . . . 37 49 93 . . . . . . . . . 160 Shots 10 | . . . . . . 1 . . . . 2 1 2 . . . . . . . . . 4 Rammed 27 | 1 3 1 . 2 . 3 . . . . 2 . . . . 6 . 4 . . . . 5 Targets Rammed 28 | 1 3 1 . 2 . 3 . . . . 2 . . . . 7 . 4 . . . . 5 Kicked . | . . . . . . . . . . . . . . . . . . . . . . . . Crushed 1 | . . . . . . . . . . . . . . . . 1 . . . . . . . Highest Temperature 330 | 40 58 194 . 65 123 268 257 330 178 133 131 286 . . 80 106 . . . 7 . . 260 Average Temperature 65 | 19 25 68 . 31 27 68 130 85 92 55 44 116 . . 45 53 . . . 7 . . 99 Received Heat Transfer 1811 | . . 96 . . 126 110 89 50 . 97 273 9 36 9 15 363 55 60 36 . . . 387 Effects 2 | . . . . . . . . 1 . . . 1 . . . . . . . . . . . Shutdowns 1 | . . . . . . . . 1 . . . . . . . . . . . . . . . Interference 1 | . . . . . . . . . . . . 1 . . . . . . . . . . . Siege Activations . | . . . . . . . . . . . . . . . . . . . . . . . . Martial Activations . | . . . . . . . . . . . . . . . . . . . . . . . . Shielding Activations . | . . . . . . . . . . . . . . . . . . . . . . . . Robots Disrupted . | . . . . . . . . . . . . . . . . . . . . . . . . Combat Hostiles . | . . . . . . . . . . . . . . . . . . . . . . . . Robots Corrupted . | . . . . . . . . . . . . . . . . . . . . . . . . Combat Hostiles . | . . . . . . . . . . . . . . . . . . . . . . . . Parts Fried 2 | . . . . . . . . . . . . . . . . 2 . . . . . . . Impact Corruptions . | . . . . . . . . . . . . . . . . . . . . . . . . Robots Melted 10 | . . . . . . . . 1 . . . . . . . 4 1 . 1 . . . 3 Combat Hostiles 10 | . . . . . . . . 1 . . . . . . . 4 1 . 1 . . . 3 Parts Melted 90 | . 1 1 . . 3 12 2 4 . 3 5 6 1 . . 20 5 3 2 1 . 3 18 Heat Transferred 32213 | 74 296 408 . 111 1378 2458 699 695 . 2311 2434 1383 294 . 496 6777 946 2912 1700 550 . 1662 4629 Parts Sabotaged . | . . . . . . . . . . . . . . . . . . . . . . . . Parts Stolen . | . . . . . . . . . . . . . . . . . . . . . . . . Parts Stripped . | . . . . . . . . . . . . . . . . . . . . . . . . Power Chain Reactions . | . . . . . . . . . . . . . . . . . . . . . . . . Alert | -11 -10 -10 -10 -9 -8 -7 -7 -7 -7 -6 -6 -6 -6 -6 -5 -5 -4 -4 -4 -4 -4 -3 -2 ------- Run | Yrd Mat Min Exi Min Mat Fac Low Low Dat Pro Fac Low Low Zio Pro Fac Fac Ext Cet Arc Hub Res Res Maximum Alert Level 5 | . . . . . 2 3 . . . . 3 . . . . 3 2 2 1 1 . . 5 Low Security (%) 59 | 100 100 100 . 100 61 82 . . . . 26 . . . . 55 . . 10 67 100 100 29 Level 1 18 | . . . . . 28 2 . . . . 4 . . . . 10 . 57 89 32 . . 44 Level 2 14 | . . . . . 10 5 . . . . 46 . . . . 16 100 42 . . . . 9 Level 3 5 | . . . . . . 8 . . . . 22 . . . . 17 . . . . . . 1 Level 4 1 | . . . . . . . . . . . . . . . . . . . . . . . 13 Level 5 . | . . . . . . . . . . . . . . . . . . . . . . . . High Security . | . . . . . . . . . . . . . . . . . . . . . . . . Max Security . | . . . . . . . . . . . . . . . . . . . . . . . . Peak Influence 1644 | 5 191 99 . 101 442 891 . . . . 857 . . . . 1048 694 547 379 324 60 160 1644 Initial 513 | . . 36 . . 13 191 . . . . 44 . . . . 46 513 311 180 131 . . . Average 241 | . 97 27 . 26 156 184 . . . . 486 . . . . 296 617 402 305 136 23 61 423 Influence Increases 12579 | 5 325 284 . 176 1265 1339 149 230 . 425 1254 424 348 25 361 1582 273 747 359 273 89 290 2356 Destroy 0b10 Robot/C 6300 | . 160 180 . 100 580 600 100 160 . 280 500 320 240 20 260 900 180 340 160 80 20 120 1000 Destroy 0b10 Robot/NC 385 | 5 15 . . 5 45 55 . 5 . . 30 . . . . 50 . 25 10 20 5 20 95 Destroy Leader 1214 | . 34 30 . 20 142 170 20 20 . 50 104 20 40 . 30 226 30 30 . . . 42 206 Allied During Kill 2423 | . 49 69 . 51 277 193 29 45 . 80 151 84 68 5 71 279 51 304 169 71 12 56 309 Trap Triggered on 0b10 50 | . . . . . . 10 . . . . 10 . . . . 10 . 20 . . . . . Successful Hack 163 | . 52 . . . 2 59 . . . . . . . . . . . 2 . . . 40 8 Select Force Hacks 70 | . . . . . . 20 . . . . . . . . . . . . . . 50 . . Disable Machine 375 | . . . . . 15 30 . . . . 150 . . . . 45 . . . 90 . . 45 Anti-Garrison Action 650 | . . . . . 150 150 . . . . 200 . . . . . . . . . . . 150 Destroy Structure 874 | . . 5 . . 39 37 . . . . 109 . . . . 72 12 26 20 12 2 12 528 Lose Combat Pursuer 75 | . 15 . . . 15 15 . . . 15 . . . . . . . . . . . . 15 Influence Decreases 11078 | 5 230 379 . 140 881 871 608 422 237 355 503 703 328 587 286 609 685 1059 354 602 89 290 855 Entered New Map 3188 | . . 59 . . 23 229 330 82 237 . 26 305 104 562 . 29 535 325 144 198 . . . Time Decay 6430 | 5 230 320 . 140 478 600 278 310 . 276 437 398 214 25 286 500 140 474 150 384 40 260 485 Lost Part 709 | . . . . . 30 30 . 30 . 79 40 . 10 . . 70 10 10 20 . . 10 370 Lost Ally 331 | . . . . . 80 12 . . . . . . . . . 10 . 100 40 20 49 20 . Purge Threat 420 | . . . . . 270 . . . . . . . . . . . . 150 . . . . . Squads Dispatched 67 | . 1 . . . 7 11 . . . . 7 . . . . 17 5 4 . . 1 2 12 Investigation 9 | . . . . . 2 3 . . . . 1 . . . . . 1 . . . 1 . 1 Extermination 13 | . . . . . . 4 . . . . 2 . . . . 3 . . . . . . 4 Reinforcement 23 | . 1 . . . 2 1 . . . . 3 . . . . 6 1 2 . . . 2 5 Assault 13 | . . . . . 2 2 . . . . 1 . . . . 3 1 2 . . . . 2 Garrison 9 | . . . . . 1 1 . . . . . . . . . 5 2 . . . . . . Intercept . | . . . . . . . . . . . . . . . . . . . . . . . . Searches Triggered . | . . . . . . . . . . . . . . . . . . . . . . . . Data Miner Redirects 2 | . . . . . . . . . . . . . . . . 2 . . . . . . . Construction Impeded 4 | . . . . . . 1 . . . . . . . . . . 1 . . . . . 2 Haulers Reinforced 1 | . . . . . . . . . . . 1 . . . . . . . . . . . . Active Scanning Responses . | . . . . . . . . . . . . . . . . . . . . . . . . Cargo Convoy Interrupts . | . . . . . . . . . . . . . . . . . . . . . . . . Stealth | -11 -10 -10 -10 -9 -8 -7 -7 -7 -7 -6 -6 -6 -6 -6 -5 -5 -4 -4 -4 -4 -4 -3 -2 --------- Run | Yrd Mat Min Exi Min Mat Fac Low Low Dat Pro Fac Low Low Zio Pro Fac Fac Ext Cet Arc Hub Res Res Distress Signals 27 | . 3 1 . . 3 1 . . . . 1 . . . . . 2 2 2 . . 9 3 Communications Jammed . | . . . . . . . . . . . . . . . . . . . . . . . . Distress Signals . | . . . . . . . . . . . . . . . . . . . . . . . . Times Spotted 372 | . 14 9 . 3 42 47 5 8 . 14 28 16 11 1 13 55 9 19 9 10 1 6 52 Peak Tracking Total 13 | . 5 3 . 3 10 5 4 4 . 4 5 6 4 1 5 5 5 3 5 1 1 2 13 Tactical Retreats 5 | . 1 . . . 1 1 . . . 1 . . . . . . . . . . . . 1 Traps | -11 -10 -10 -10 -9 -8 -7 -7 -7 -7 -6 -6 -6 -6 -6 -5 -5 -4 -4 -4 -4 -4 -3 -2 ------- Run | Yrd Mat Min Exi Min Mat Fac Low Low Dat Pro Fac Low Low Zio Pro Fac Fac Ext Cet Arc Hub Res Res Traps Triggered 11 | . . . . . 1 1 . . . . 1 . . . . 4 1 1 . . . 2 . Indirectly . | . . . . . . . . . . . . . . . . . . . . . . . . Trap Hack Attempts 6 | . . . . . . . . . . . . . . . . 6 . . . . . . . Triggered . | . . . . . . . . . . . . . . . . . . . . . . . . Disarmed . | . . . . . . . . . . . . . . . . . . . . . . . . Reprogrammed 6 | . . . . . . 5 . . . . . . . . . 1 . . . . . . . Reused 5 | . . . . . . 1 . . . . 1 . . . . 1 . 2 . . . . . Traps Extracted 3 | . . . . . . . . 3 . . . . . . . . . . . . . . . Installed 5 | . . . . . . . . . . . 1 . . . . . . 4 . . . . . Triggered 5 | . . . . . . 1 . . . . 1 . . . . 1 . 2 . . . . . Most Traps Carried 8 | . . . . . . . . 8 8 8 8 7 7 7 6 6 6 6 2 2 2 2 . Machines | -11 -10 -10 -10 -9 -8 -7 -7 -7 -7 -6 -6 -6 -6 -6 -5 -5 -4 -4 -4 -4 -4 -3 -2 ---------- Run | Yrd Mat Min Exi Min Mat Fac Low Low Dat Pro Fac Low Low Zio Pro Fac Fac Ext Cet Arc Hub Res Res Machines Disabled 31 | . . . . . 2 3 . 1 . . 10 2 . . . 3 . . . 6 . . 4 Max in Single Turn 1 | . . . . . . 1 . 1 . . 1 1 . . . 1 . . . 1 . . 1 Garrison Access 5 | . . . . . 1 1 . . . . 1 . . . . 1 . . . . . . 1 Network Hub 1 | . . . . . . . . . . . . . . . . . . . . . 1 . . Machines Repaired . | . . . . . . . . . . . . . . . . . . . . . . . . Machines Dismantled . | . . . . . . . . . . . . . . . . . . . . . . . . Machines Sabotaged 1 | . . . . . . . . . . . . . . . . . . . . . 1 . . Overloaded Fab Kills . | . . . . . . . . . . . . . . . . . . . . . . . . Hacking | -11 -10 -10 -10 -9 -8 -7 -7 -7 -7 -6 -6 -6 -6 -6 -5 -5 -4 -4 -4 -4 -4 -3 -2 --------- Run | Yrd Mat Min Exi Min Mat Fac Low Low Dat Pro Fac Low Low Zio Pro Fac Fac Ext Cet Arc Hub Res Res Machines Accessed 54 | . 3 1 2 . 7 13 . . 3 . 7 . . . . 8 1 3 . . 1 2 3 Terminals 21 | . 2 . . . 3 6 . . . . 1 . . . . 5 . 2 . . 1 . 1 Fabricators 4 | . . . . . . 3 . . . . . . . . . . 1 . . . . . . Repair Stations 9 | . 1 . . . 1 . . . . . 3 . . . . 1 . 1 . . . 1 1 Recycling Units 5 | . . . . . . 3 . . . . 2 . . . . . . . . . . . . Scanalyzers 4 | . . . . . 2 . . . . . . . . . . 1 . . . . . 1 . Garrison Access 5 | . . . . . 1 1 . . . . 1 . . . . 1 . . . . . . 1 Total Hacks 168 | . 14 1 2 . 25 33 . . 27 . 15 . . . . 17 2 7 . . 1 13 11 Successful 111 | . 10 1 2 . 17 17 . . 27 . 11 . . . . 9 2 3 . . 1 8 3 Failed 56 | . 4 . . . 7 16 . . . . 4 . . . . 8 . 4 . . . 5 8 Catastrophic 14 | . . . . . . 3 . . . . 1 . . . . 4 . 1 . . . 2 3 Database Lockouts 1 | . . . . . 1 . . . . . . . . . . . . . . . . . . Manual 39 | . 7 . 1 . 11 7 . . . . 1 . . . . 4 1 . . . 1 . 6 Terminals 57 | . 9 . . . 9 17 . . . . 3 . . . . 8 . 4 . . 1 . 6 Fabricators 9 | . . . . . . 7 . . . . . . . . . . 2 . . . . . . Repair Stations 31 | . 5 . . . 4 . . . . . 9 . . . . 3 . 3 . . . 5 2 Recycling Units 8 | . . . . . . 6 . . . . 2 . . . . . . . . . . . . Scanalyzers 23 | . . . . . 10 . . . . . . . . . . 5 . . . . . 8 . Garrison Access 10 | . . . . . 2 3 . . . . 1 . . . . 1 . . . . . . 3 Terminal Hacks 51 | . 5 1 2 . 3 8 . . 27 . 2 . . . . 1 . 1 . . . . 1 Record 7 | . . . 1 . . . . . 6 . . . . . . . . . . . . . . Part Schematic 12 | . . . . . . 1 . . 11 . . . . . . . . . . . . . . Robot Schematic 7 | . . . . . . . . . 7 . . . . . . . . . . . . . . Robot Analysis 4 | . 3 . . . . 1 . . . . . . . . . . . . . . . . . Prototype ID Bank 4 | . 1 . . . . . . . 3 . . . . . . . . . . . . . . Open Door 1 | . . 1 . . . . . . . . . . . . . . . . . . . . . Level Access Points 1 | . . . . . . . . . . . . . . . . . . . . . . . 1 Branch Access Points 3 | . . . . . 1 1 . . . . 1 . . . . . . . . . . . . Terminal Index 1 | . 1 . . . . . . . . . . . . . . . . . . . . . . Unreport Threat 3 | . . . . . 2 . . . . . . . . . . . . 1 . . . . . Locate Traps 5 | . . . . . . 3 . . . . 1 . . . . 1 . . . . . . . Reprogram Traps 1 | . . . . . . 1 . . . . . . . . . . . . . . . . . Zone Layout 1 | . . . . . . 1 . . . . . . . . . . . . . . . . . Proto ID Catalog 1 | . . . 1 . . . . . . . . . . . . . . . . . . . . Fabricator Hacks 3 | . . . . . . 2 . . . . . . . . . . 1 . . . . . . Network Status 2 | . . . . . . 1 . . . . . . . . . . 1 . . . . . . Build 1 | . . . . . . 1 . . . . . . . . . . . . . . . . . Repair Station Hacks 25 | . 4 . . . 4 . . . . . 7 . . . . 2 . 2 . . . 4 2 Scan Component 12 | . 1 . . . 2 . . . . . 4 . . . . 1 . 1 . . . 2 1 Repair 11 | . 1 . . . 2 . . . . . 3 . . . . 1 . 1 . . . 2 1 Refit 2 | . 2 . . . . . . . . . . . . . . . . . . . . . . Recycling Unit Hacks 4 | . . . . . . 3 . . . . 1 . . . . . . . . . . . . Retrieve Components 4 | . . . . . . 3 . . . . 1 . . . . . . . . . . . . Scanalyzer 16 | . . . . . 8 . . . . . . . . . . 4 . . . . . 4 . Insert Component 6 | . . . . . 4 . . . . . . . . . . . . . . . . 2 . Analyze 4 | . . . . . 3 . . . . . . . . . . . . . . . . 1 . Retrieve Study 6 | . . . . . 1 . . . . . . . . . . 4 . . . . . 1 . Garrison Access Hacks 2 | . . . . . 1 . . . . . . . . . . 1 . . . . . . . Unlock Access 1 | . . . . . 1 . . . . . . . . . . . . . . . . . . Seal Access 1 | . . . . . . . . . . . . . . . . 1 . . . . . . . Unauthorized Hacks 10 | . 1 . . . 1 4 . . . . 1 . . . . 1 1 . . . 1 . . Terminals 4 | . 1 . . . . 1 . . . . . . . . . 1 . . . . 1 . . Assimilate 2 | . . . . . . 1 . . . . . . . . . 1 . . . . . . . Botnet 1 | . 1 . . . . . . . . . . . . . . . . . . . . . . Sabotage 1 | . . . . . . . . . . . . . . . . . . . . . 1 . . Fabricators 4 | . . . . . . 3 . . . . . . . . . . 1 . . . . . . Haulers 1 | . . . . . . 1 . . . . . . . . . . . . . . . . . Download 1 | . . . . . . 1 . . . . . . . . . . . . . . . . . Recompile 2 | . . . . . . 1 . . . . . . . . . . 1 . . . . . . Repair Stations . | . . . . . . . . . . . . . . . . . . . . . . . . Recycling Units . | . . . . . . . . . . . . . . . . . . . . . . . . Scanalyzers . | . . . . . . . . . . . . . . . . . . . . . . . . Garrison Access 2 | . . . . . 1 . . . . . 1 . . . . . . . . . . . . Reprogram 1 | . . . . . 1 . . . . . . . . . . . . . . . . . . Jam 1 | . . . . . . . . . . . 1 . . . . . . . . . . . . Data Cores Recovered 4 | . . . . . . . . . . . . . . . . 1 . . . . 1 1 1 Used . | . . . . . . . . . . . . . . . . . . . . . . . . Hacking Detections 38 | . 3 . . . 6 11 . . . . 4 . . . . 6 . 3 . . . 2 3 Full Trace Events 2 | . . . . . . 1 . . . . . . . . . . . . . . . . 1 Feedback Events . | . . . . . . . . . . . . . . . . . . . . . . . . Feedback Blocked . | . . . . . . . . . . . . . . . . . . . . . . . . Robot Schematics Acquired 8 | . . . . . . 1 . . 7 . . . . . . . . . . . . . . Robots Built 1 | . . . . . . 1 . . . . . . . . . . . . . . . . . Authchips . | . . . . . . . . . . . . . . . . . . . . . . . . Time 58 | . . . . . . 58 . . . . . . . . . . . . . . . . . Total Robot Build Rating 3 | . . . . . . 3 . . . . . . . . . . . . . . . . . Part Schematics Acquired 15 | . . . . . 2 1 . . 11 . . . . . . . . . . . . 1 . Parts Built . | . . . . . . . . . . . . . . . . . . . . . . . . Authchips . | . . . . . . . . . . . . . . . . . . . . . . . . Time . | . . . . . . . . . . . . . . . . . . . . . . . . Total Part Build Rating . | . . . . . . . . . . . . . . . . . . . . . . . . Part Studies Acquired 6 | . . . . . 1 . . . . . . . . . . 4 . . . . . 1 . Parts Repaired 11 | . 1 . . . 2 . . . . . 3 . . . . 1 . 1 . . . 2 1 Time 491 | . 26 . . . 52 . . . . . 78 . . . . 50 . 50 . . . 216 19 Parts Recycled . | . . . . . . . . . . . . . . . . . . . . . . . . Recycled Matter . | . . . . . . . . . . . . . . . . . . . . . . . . Retrieved Matter . | . . . . . . . . . . . . . . . . . . . . . . . . Retrieved Components 16 | . . . . . . 13 . . . . 3 . . . . . . . . . . . . Parts Scanalyzed 3 | . . . . . 2 . . . . . . . . . . . . . . . . 1 . Part Schematics Acquired 3 | . . . . . 2 . . . . . . . . . . . . . . . . 1 . Parts Damaged 2 | . . . . . 1 . . . . . . . . . . . . . . . . 1 . Bothacking | -11 -10 -10 -10 -9 -8 -7 -7 -7 -7 -6 -6 -6 -6 -6 -5 -5 -4 -4 -4 -4 -4 -3 -2 ------------ Run | Yrd Mat Min Exi Min Mat Fac Low Low Dat Pro Fac Low Low Zio Pro Fac Fac Ext Cet Arc Hub Res Res Used RIF Installer . | . . . . . . . . . . . . . . . . . . . . . . . . Robots Hacked 7 | . . . 4 . . . . . 1 . . . . 1 . . . . . 1 . . . Non-combat 4 | . . . 3 . . . . . . . . . . . . . . . . 1 . . . Combat 3 | . . . 1 . . . . . 1 . . . . 1 . . . . . . . . . Robot Hacks Applied 8 | . . . 4 . . . . . 1 . . . . 1 . . . . . 2 . . . parse_system 7 | . . . 4 . . . . . 1 . . . . 1 . . . . . 1 . . . check_alert 1 | . . . . . . . . . . . . . . . . . . . . 1 . . . Relay Couplers Released 4 | . . . . . 1 2 . . . . . . . . . . . . . . . . 1 Machine Destruction 4 | . . . . . 1 2 . . . . . . . . . . . . . . . . 1 Fabnet Peak Effective % . | . . . . . . . . . . . . . . . . . . . . . . . . Robots Rewired 10 | . . . . . . . . . . . . . . . . . . 10 . . . . . Allies Hacked . | . . . . . . . . . . . . . . . . . . . . . . . . Hacks Repelled . | . . . . . . . . . . . . . . . . . . . . . . . . Allies | -11 -10 -10 -10 -9 -8 -7 -7 -7 -7 -6 -6 -6 -6 -6 -5 -5 -4 -4 -4 -4 -4 -3 -2 -------- Run | Yrd Mat Min Exi Min Mat Fac Low Low Dat Pro Fac Low Low Zio Pro Fac Fac Ext Cet Arc Hub Res Res Total Allies 25 | . 1 3 . 2 1 2 . . . . . . . . . 1 . 15 . . . . . Largest Group 10 | . 1 4 3 5 4 2 1 1 1 1 1 1 1 1 1 2 1 10 10 7 5 2 1 Highest-Rated Group 545 | . 57 103 96 145 147 120 102 104 104 106 124 124 124 124 124 161 142 545 545 421 329 222 210 Highest-Rated Ally 210 | . 57 63 64 64 86 102 102 104 104 106 124 124 124 124 124 135 142 153 155 157 157 184 210 Total Orders 8 | . . . . . . 1 . . . . . . . . . 1 . 3 . . . 2 1 STAY 2 | . . . . . . 1 . . . . . . . . . 1 . . . . . . . RETURN 6 | . . . . . . . . . . . . . . . . . . 3 . . . 2 1 Ally Attacks 686 | . 11 14 . 21 123 75 6 10 . 30 30 16 9 4 11 57 17 81 45 24 11 14 77 Total Damage 25236 | . 271 215 . 260 1953 1309 226 333 . 750 1759 791 279 210 522 3453 1185 2915 1212 898 268 735 5692 Kills 178 | . 6 5 . 5 20 12 2 . . 7 14 3 4 2 4 25 5 14 7 8 2 4 29 Allies Corrupted . | . . . . . . . . . . . . . . . . . . . . . . . . Allies Melted . | . . . . . . . . . . . . . . . . . . . . . . . . Intel | -11 -10 -10 -10 -9 -8 -7 -7 -7 -7 -6 -6 -6 -6 -6 -5 -5 -4 -4 -4 -4 -4 -3 -2 ------- Run | Yrd Mat Min Exi Min Mat Fac Low Low Dat Pro Fac Low Low Zio Pro Fac Fac Ext Cet Arc Hub Res Res Active Infowar (turns) 2694 | . . . . . . . . . . . . 203 315 1172 846 158 . . . . . . . IFF 2536 | . . . . . . . . . . . . 203 315 1172 846 . . . . . . . . Machine Analysis 158 | . . . . . . . . . . . . . . . . 158 . . . . . . . Robot Analysis Total 4 | . 3 . . . . 1 . . . . . . . . . . . . . . . . . Derelict Logs Recovered 11 | . . 2 . 2 . . . 1 . 1 . 1 1 2 1 . . . . . . . . Drone Launches 6 | . . . . . . . . . . . . . . . . . . 3 . . . 2 1 Drone Recoveries 6 | . . . . . . . . . . . . . . . . . . 3 . . . 2 1 Exploration | -11 -10 -10 -10 -9 -8 -7 -7 -7 -7 -6 -6 -6 -6 -6 -5 -5 -4 -4 -4 -4 -4 -3 -2 ------------- Run | Yrd Mat Min Exi Min Mat Fac Low Low Dat Pro Fac Low Low Zio Pro Fac Fac Ext Cet Arc Hub Res Res Turns Passed 21095 | 114 588 1180 692 614 1279 2312 602 696 151 737 1467 941 459 1480 1004 1592 290 1219 306 1078 125 808 1361 Spaces Moved 10500 | 60 306 655 419 356 586 1220 358 368 90 402 656 525 248 878 590 735 132 611 154 131 59 368 593 Core 66 | 7 . . . . . . . . . . . . . . . . . . . 59 . . . Treads 10434 | 53 306 655 419 356 586 1220 358 368 90 402 656 525 248 878 590 735 132 611 154 72 59 368 593 Legs . | . . . . . . . . . . . . . . . . . . . . . . . . Wheels . | . . . . . . . . . . . . . . . . . . . . . . . . Hover . | . . . . . . . . . . . . . . . . . . . . . . . . Flight . | . . . . . . . . . . . . . . . . . . . . . . . . Fastest Speed 50 | 50 160 160 160 160 160 160 160 160 160 160 160 160 160 160 162 162 161 159 158 158 158 165 160 Average Speed 168 | 147 160 160 160 160 160 160 160 160 160 160 160 160 160 160 162 162 161 161 158 784 160 165 164 Slowest Speed 1550 | 160 160 160 160 160 160 160 160 160 160 200 160 160 160 162 162 164 162 162 159 1550 165 165 166 Overloaded Moves . | . . . . . . . . . . . . . . . . . . . . . . . . Propulsion Burnouts . | . . . . . . . . . . . . . . . . . . . . . . . . Robots Hopped . | . . . . . . . . . . . . . . . . . . . . . . . . Potential Cave-ins 6 | . . . . . . . . . . . 4 . . . . . . . . . . . 2 Cave-ins Triggered . | . . . . . . . . . . . . . . . . . . . . . . . . Exploration Rate (%) 51 | 3 36 99 71 87 51 35 66 51 74 71 21 72 43 85 84 24 5 86 59 73 10 10 14 Regions Visited 23 Branch Regions 15 Pre-discovered Areas 7 | . . . 1 1 . . . . 1 . . . . 4 . . . . . . . . . Known Exits Taken 8 | . . . . . 1 1 . . . . 1 . . . 1 1 . 1 . . 1 1 . Unknown Exits Taken 15 | 1 1 1 1 1 . . 1 1 1 1 . 1 1 1 . . 1 . 1 1 . . . Scrap Searched 6 | . . 1 . . . . 1 . . 1 . 1 1 1 . . . . . . . . . Spaces Dug 138 | . . 5 . . 20 9 . 7 . . 30 10 . . . 1 . . . . . . 56 Terrain Destroyed 633 | . . 5 . . 42 41 . 22 . . 129 37 83 . 25 23 1 . . . . . 225 Melee 18 | . . 5 . . . 2 . 7 . . 3 . . . . 1 . . . . . . . Projectile 43 | . . . . . . . . . . . 5 . . . . . 1 . . . . . 37 AOE 572 | . . . . . 42 39 . 15 . . 121 37 83 . 25 22 . . . . . . 188 Terrain Rammed . | . . . . . . . . . . . . . . . . . . . . . . . . Walls Destroyed . | . . . . . . . . . . . . . . . . . . . . . . . . Machines Disabled . | . . . . . . . . . . . . . . . . . . . . . . . . Actions | -11 -10 -10 -10 -9 -8 -7 -7 -7 -7 -6 -6 -6 -6 -6 -5 -5 -4 -4 -4 -4 -4 -3 -2 --------- Run | Yrd Mat Min Exi Min Mat Fac Low Low Dat Pro Fac Low Low Zio Pro Fac Fac Ext Cet Arc Hub Res Res Total 12933 | 77 383 752 438 396 844 1479 371 426 95 445 976 586 288 951 617 969 184 796 189 165 90 550 866 Wait 1291 | 1 49 48 7 29 160 131 7 15 . 12 203 37 6 51 8 100 28 104 8 9 24 137 117 Move 10477 | 59 305 654 418 355 585 1219 357 367 89 401 655 524 247 877 589 734 131 610 153 130 58 367 593 Hop . | . . . . . . . . . . . . . . . . . . . . . . . . Pick Up 125 | 7 6 9 3 5 19 15 . 1 . 2 12 1 2 2 . 13 4 7 2 4 . 8 3 Fast Attach 69 | 5 1 . . . 1 5 1 1 . 1 11 . 2 4 . 2 2 4 4 . 3 4 18 Attach 42 | 1 . . . . 6 1 . 3 . 5 5 . 1 1 . 6 2 1 2 . . 4 4 Detach 24 | . 1 . . . . 2 . 1 . 2 3 . 2 2 . 1 . . . . 1 2 7 Swap 179 | . . 8 4 . 9 32 . 11 5 2 14 5 12 7 10 11 1 16 3 5 1 9 14 Drop 139 | . 5 11 2 2 14 23 . 1 . . 14 1 3 6 . 11 4 12 5 4 3 8 10 Fire 478 | 3 13 14 . 3 50 39 6 10 . 20 53 18 13 . 10 72 12 19 12 5 . 11 95 Melee 65 | . . 7 4 . . 8 . 16 1 . 3 . . 1 . 2 . 15 . 8 . . . Ram . | . . . . . . . . . . . . . . . . . . . . . . . . Kick . | . . . . . . . . . . . . . . . . . . . . . . . . Crush 28 | 1 3 1 . 2 . 3 . . . . 2 . . . . 7 . 4 . . . . 5 Escape Stasis 5 | . . . . . . 1 . . . . . . . . . 4 . . . . . . . Rewire . | . . . . . . . . . . . . . . . . . . . . . . . . Trap 11 | . . . . . . . . . . . 1 . . . . 6 . 4 . . . . . Miscellaneous . | . . . . . . . . . . . . . . . . . . . . . . . . Route ------- -11/Scrapyard -10/Materials -10/Mines (discovered 4 exits: [*Mat x2] / *Exi / [*Sub]) -10/Exiles (discovered 2 exits: [*Min x2]) -9/Mines (discovered 2 exits: *Mat x2) -8/Materials (discovered 2 exits: *Fac x2) -7/Factory (discovered 3 exits: *Fac / *Low x2) -7/Lower Caves -7/Lower Caves -7/Data Miner -6/Proximity Caves -6/Factory (discovered 2 exits: *Low x2) -6/Lower Caves -6/Lower Caves -6/Zion -5/Proximity Caves -5/Factory -4/Factory -4/Extension (discovered 3 exits: *Res x2 / *Cet) -4/Cetus (discovered 2 exits: *Res / [*Arc]) -4/Archives (discovered 2 exits: *Res / *Hub) -4/Hub_04(d) -3/Research (discovered 3 exits: *Res x3) -2/Research (discovered 4 exits: Acc x3 / [*Qua]) History --------- Turn | Location | Event 4 | -11/Scrapyard | Discovered new exit (range 16) 115 | -11/Scrapyard | Entered Materials 330 | -10/Materials | Build established: Mutant 342 | -10/Materials | Discovered new exit (range 9) 666 | -10/Materials | Repaired Lgt. Treads 703 | -10/Materials | Entered Mines 760 | -10/Mines | Assembled infested the area 765 | -10/Mines | Assisted by a Guerilla fighting off Assembled 1210 | -10/Mines | Discovered new exit (range 15) 1213 | -10/Mines | Assisted by bots powering up and referring to "LRC-V3" 1235 | -10/Mines | Met a Derelict who couldn't figure out how to use a Trap Extractor 1421 | -10/Mines | Learned Materials stockpile data 1448 | -10/Mines | Deemed a non-threat by the Exiles lab entrance 1450 | -10/Mines | Discovered new exit (range 5) 1483 | -10/Mines | Discovered new exit (range 11) 1488 | -10/Mines | Learned 2 Materials zone layouts 1551 | -10/Mines | Discovered new exit (range 4) 1718 | -10/Mines | Found a damaged Exp. Sensor Array with a note attached 1722 | -10/Mines | Found Prototype Device 1883 | -10/Mines | Entered Exiles 1883 | -10/Exiles | Accompanied by 2 allies 1926 | -10/Exiles | Met 8R-AWN 1955 | -10/Exiles | Met EX-HEX 2025 | -10/Exiles | Met EX-DEC 2073 | -10/Exiles | Learned location of Zion (-6) 2110 | -10/Exiles | Met EX-BIN 2132 | -10/Exiles | Aligned with FarCom system 2134 | -10/Exiles | Given EX-Vault access code 2172 | -10/Exiles | Opened EX-Vault 2219 | -10/Exiles | Warned to stay clear of 0b10 Research branches 2360 | -10/Exiles | Discovered new exit (range 10) 2425 | -10/Exiles | Build established: Scavenger-Mutant 2549 | -10/Exiles | Discovered new exit (range 15) 2575 | -10/Exiles | Left Exiles lab with Longsword +1 2575 | -10/Exiles | Entered Mines 2575 | -9/Mines | Accompanied by 2 allies 2791 | -9/Mines | Learned 4 Materials zone layouts 2889 | -9/Mines | Discovered new exit (range 10) 3160 | -9/Mines | Discovered new exit (range 5) 3189 | -9/Mines | Entered Materials 3189 | -8/Materials | Accompanied by 3 allies 3189 | -8/Materials | Evolved 4 slots: Propulsion x1, Utility x2, Weapon x1 3190 | -8/Materials | Identified exit to Factory 3194 | -8/Materials | Led the pair of lost Derelicts to an unsafe place 3357 | -8/Materials | Identified Exp. Sensor Array 3434 | -8/Materials | Central database locked down 3533 | -8/Materials | Build established: Scavenger-Skirmisher 4007 | -8/Materials | Repaired Lgt. Treads+ 4034 | -8/Materials | Repaired Lgt. Treads+ 4240 | -8/Materials | Identified exit to Garrison 4468 | -8/Materials | Entered Factory 4468 | -7/Factory | Evolved 2 slots: Propulsion x1, Utility x1 4745 | -7/Factory | Discovered new exit (range 13) 4783 | -7/Factory | Discovered new exit (range 3) 5011 | -7/Factory | Build established: Scavenger-Tank 5277 | -7/Factory | Fabricated M-28 Smith? 5591 | -7/Factory | Identified exit to Lower Caves 5641 | -7/Factory | Build established: Scavenger-Skirmisher 6390 | -7/Factory | Garrison activated, responded to threat 6599 | -7/Factory | Destroyed 7 combat bots 6665 | -7/Factory | Build established: Scavenger-Tank 6780 | -7/Factory | Entered Lower Caves 6880 | -7/Lower Caves | Attracted the attention of an 0b10 checkpoint 7262 | -7/Lower Caves | Discovered new exit (range 9) 7382 | -7/Lower Caves | Entered another Lower Caves area 7677 | -7/Lower Caves | Learned 8 Factory zone layouts 7838 | -7/Lower Caves | Found Alien Artifact 7838 | -7/Lower Caves | Identified Core Expander 7838 | -7/Lower Caves | Installed Core Expander, added new Propulsion slot 7899 | -7/Lower Caves | Build established: Scavenger-Mutant 8022 | -7/Lower Caves | Encountered a Warlord checkpoint 8024 | -7/Lower Caves | Discovered new exit (range 13) 8078 | -7/Lower Caves | Entered Data Miner 8081 | -7/Data Miner | Discovered new exit (range 6) 8088 | -7/Data Miner | Murdered 3 allies 8112 | -7/Data Miner | Met Data Miner 8161 | -7/Data Miner | Learned location of Section 7 (-2) 8161 | -7/Data Miner | Acquired the access code to Warlord's prototype stash 8183 | -7/Data Miner | Received God Mode back door access code from Data Miner 8229 | -7/Data Miner | Entered Proximity Caves 8309 | -6/Proximity Caves | Spotted B-75 Beast 8331 | -6/Proximity Caves | Allies destroyed B-75 Beast 8618 | -6/Proximity Caves | Learned Factory security intel 8895 | -6/Proximity Caves | Discovered new exit (range 8) 8966 | -6/Proximity Caves | Entered Factory 8966 | -6/Factory | Evolved 2 slots: Power x1, Utility x1 8967 | -6/Factory | Identified exit to Lower Caves 9448 | -6/Factory | Build established: Scavenger-Skirmisher 10074 | -6/Factory | Repaired Lgt. Treads+ 10102 | -6/Factory | Repaired Lgt. Treads+ 10210 | -6/Factory | Build established: Trapper-Skirmisher 10277 | -6/Factory | Found Unknown Device 10277 | -6/Factory | Identified Launcher Loader 10366 | -6/Factory | First assault squad dispatched 10395 | -6/Factory | Repaired Lgt. Treads+ 10433 | -6/Factory | Entered Lower Caves 10569 | -6/Lower Caves | Attracted the attention of an 0b10 base 10655 | -6/Lower Caves | Attracted the attention of an 0b10 checkpoint 10729 | -6/Lower Caves | Build established: Trapper-Gunner 11039 | -6/Lower Caves | Spotted B-75 Beast 11051 | -6/Lower Caves | Destroyed B-75 Beast 11073 | -6/Lower Caves | Learned 8 Factory zone layouts 11358 | -6/Lower Caves | Discovered new exit (range 4) 11374 | -6/Lower Caves | Entered another Lower Caves area 11633 | -6/Lower Caves | Learned Factory security intel 11715 | -6/Lower Caves | Discovered new exit (range 13) 11833 | -6/Lower Caves | Entered Zion 11888 | -6/Zion | Discovered new exit (range 12) 11921 | -6/Zion | Learned 4 Factory zone layouts 12122 | -6/Zion | Found Prototype Device 12122 | -6/Zion | Identified Bomb Factory No. 2 12179 | -6/Zion | Given the Hacking Drone Bay 12180 | -6/Zion | Found Prototype Device 12180 | -6/Zion | Identified Hacking Drone Bay 12199 | -6/Zion | Learned location of Armory (-3) 12236 | -6/Zion | Learned location of Warlord (-4) 12414 | -6/Zion | Build established: Gunner 12781 | -6/Zion | Learned Factory security intel 12817 | -6/Zion | Learned Factory recycling unit intel 12939 | -6/Zion | Rebuked by Imprinter 13254 | -6/Zion | Visited the Megawrench Repair Shop 13254 | -6/Zion | Megawrench repaired 13 parts 13313 | -6/Zion | Entered Proximity Caves 13545 | -5/Proximity Caves | Build established: Derelict-Gunner 13606 | -5/Proximity Caves | Attracted the attention of an 0b10 checkpoint 13624 | -5/Proximity Caves | Identified exit to Factory 14317 | -5/Proximity Caves | Entered Factory 14317 | -5/Factory | Evolved 2 slots: Utility x2 14318 | -5/Factory | Identified exit to Factory 14320 | -5/Factory | Loaded intel: 8 recycling unit locations 14944 | -5/Factory | Repaired Imp. Medium Treads 14986 | -5/Factory | Build established: Scavenger-Skirmisher 15362 | -5/Factory | Found Powered Armor 15429 | -5/Factory | Garrison activated, responded to threat 15517 | -5/Factory | First assault squad dispatched 15534 | -5/Factory | Incoming assault squad redirected 15579 | -5/Factory | Garrison activated, responded to threat 15628 | -5/Factory | Incoming assault squad redirected 15757 | -5/Factory | Garrison activated, responded to threat 15909 | -5/Factory | Entered another Factory area 15909 | -4/Factory | Evolved 2 slots: Propulsion x1, Utility x1 16050 | -4/Factory | Garrison activated, responded to threat 16159 | -4/Factory | First assault squad dispatched 16176 | -4/Factory | Discovered new exit (range 12) 16199 | -4/Factory | Entered Extension 16207 | -4/Extension | Rescued a captive Derelict 16208 | -4/Extension | Rescued a captive Derelict 16208 | -4/Extension | Rescued a captive Derelict 16210 | -4/Extension | Rescued a captive Derelict 16211 | -4/Extension | Rescued a captive Derelict 16213 | -4/Extension | Rescued a captive Derelict 16216 | -4/Extension | Rescued a captive Derelict 16217 | -4/Extension | Rescued a captive Derelict 16218 | -4/Extension | Rescued a captive Derelict 16223 | -4/Extension | Rescued a captive Derelict 16225 | -4/Extension | Rescued a captive Derelict 16232 | -4/Extension | Rescued a captive Derelict 16237 | -4/Extension | Rescued a captive Derelict 16449 | -4/Extension | First assault squad dispatched 16842 | -4/Extension | Spotted B-86 Titan 16858 | -4/Extension | Spotted B-86 Titan 16865 | -4/Extension | Allies destroyed B-86 Titan 16872 | -4/Extension | Destroyed B-86 Titan 16882 | -4/Extension | Discovered new exit (range 13) 16906 | -4/Extension | Found Hvy. Reflective Plating 16943 | -4/Extension | Extracted ID and sensor layout for unrecognized location from A7's data core 16988 | -4/Extension | Identified exit to Research 17002 | -4/Extension | Watched by a mysterious "MATRIX" hacker. 17052 | -4/Extension | Repaired Imp. Heavy Armor Plating 17195 | -4/Extension | Build established: Scavenger-Tank 17304 | -4/Extension | Identified exit to Cetus 17418 | -4/Extension | Entered Cetus 17418 | -4/Cetus | Accompanied by 9 allies 17438 | -4/Cetus | Spotted Cetus Guard 17438 | -4/Cetus | Spotted Cetus Guard 17439 | -4/Cetus | Spotted Cetus Guard 17439 | -4/Cetus | Spotted Cetus Guard 17451 | -4/Cetus | Destroyed Cetus Guard 17455 | -4/Cetus | Destroyed Cetus Guard 17466 | -4/Cetus | Destroyed Cetus Guard 17473 | -4/Cetus | Destroyed Cetus Guard 17575 | -4/Cetus | Discovered new exit (range 15) 17603 | -4/Cetus | Spotted Cetus Guard 17603 | -4/Cetus | Spotted Cetus Guard 17605 | -4/Cetus | Spotted Cetus Guard 17605 | -4/Cetus | Spotted Cetus Guard 17617 | -4/Cetus | Allies destroyed Cetus Guard 17618 | -4/Cetus | Allies destroyed Cetus Guard 17619 | -4/Cetus | Allies destroyed Cetus Guard 17627 | -4/Cetus | Allies destroyed Cetus Guard 17628 | -4/Cetus | Discovered exit to Research (range 16) 17637 | -4/Cetus | Met Revision 17 17724 | -4/Cetus | Entered Archives 17724 | -4/Archives | Accompanied by 6 allies 17813 | -4/Archives | Discovered new exit (range 15) 17844 | -4/Archives | Discovered exit to Research (range 16) 18802 | -4/Archives | Entered Hub_04(d) 18802 | -4/Hub_04(d) | Accompanied by 4 allies 18816 | -4/Hub_04(d) | Network Hub disabled 18897 | -4/Hub_04(d) | Discovered exit to Research (range 5) 18927 | -4/Hub_04(d) | Entered Research 18927 | -3/Research | Accompanied by 1 ally 18927 | -3/Research | Evolved 2 slots: Power x1, Utility x1 19051 | -3/Research | Repaired Centrium Heavy Treads 19153 | -3/Research | Revision forces began assault on 0b10 19153 | -3/Research | Met up with Revision 17++ 19162 | -3/Research | Repaired Centrium Heavy Treads 19434 | -3/Research | Found Prototype Protection 19434 | -3/Research | Identified Centrium Heavy Armor Plating 19588 | -3/Research | Identified exit to Research 19653 | -3/Research | Research terminal network offline 19729 | -3/Research | Found Fusion Bomb Launcher 19735 | -3/Research | Entered another Research area 19735 | -2/Research | Evolved 2 slots: Utility x2 20023 | -2/Research | Identified exit to Access 20060 | -2/Research | Found Prototype Processor 20060 | -2/Research | Identified Exp. Signal Interpreter 20581 | -2/Research | Found Prototype Launcher 20581 | -2/Research | Identified Adv. Micro-nuke Launcher 20689 | -2/Research | Repaired Cryofiber Web 20793 | -2/Research | Discovered new exit (range 8) 20949 | -2/Research | Destroyed 13 combat bots 20957 | -2/Research | Lost 3 parts (1p2u) 21079 | -2/Research | Core integrity fell below 50% 21089 | -2/Research | Core integrity fell below 20% 21096 | -2/Research | Core destroyed Last Messages --------------- 21085_ Cryofiber Web destroyed. 21085_ Acquired 27 matter. 21086_ Slug penetrates Player 2. 21088_ Slug penetrates Wall. 21088_ Slug penetrates Player 2. 21089_ H-88 Terminator heat short circuits Lgt. Quantum Reactor. 21089_ Slug penetrates Wall. 21089_ Slug penetrates Player 2. Player 2: "Sure would be nice to find a propulsion unit around here..." 21091_ H-88 Terminator heat spikes uncontrollably. 21091_ Slug penetrates Player 2. 21091_ U-05 Engineer lays Concrete. 21093_ H-88 Terminator heat damages KE Penetrator. 21093_ U-05 Engineer builds a Wall. 21094_ Slug penetrates Player 2. 21096_ H-88 Terminator heat damages Adv. Targeting Computer. 21096_ Slug penetrates Player 2. Map ----- +----------------------------------------------------+ | ?????????????????????????????????????????????????? | | ?????????????????????????????????????????????????? | | ?????????????????????????????????????????????????? | | ????????????????????????????????????????##???????? | | ??????????????????????????????????????? #???????? | | ??????????????????????????????????????? +???????? | | ????????????????????????? ????????????? #???????? | | ????????????????????????? ???????????? #???????? | | ????????????????????????? ???????????? #???????? | | ????????????????????????? ???????###?? #???????? | | ????????????????????????? ???##### ### ######### | | ??????????????????????### #?## # | | ??????????????????????# ?# | | ?????????????????????? # # | | ??????????????????????? + # ########? | | ?????????????????????? !! # ==[ # ##??????? | | ??????????????????#???# =%*?# % % [ #??????? | | ??????????????????#;????#%### % ###?????? | | ??????????????????# ???#=#%#= # #?????? | | ??????????????????# ???+=#=#= ! #??????? | | ??????????????????# *#!; %##??????? | | ??????????????????# %#!##### # !#####????? | | ?????????????? # !#=## ### # %!% #????? | | ?????????????+ # [# %!# # # =%= #????? | | ?????????????# # ;!# *## # ""="" #????? | | ?????????????# #######@@ ## #### [=" #????? | | ?????????????# ????# # ;## # ! *= " #????? | | ?????????????# ???## h # # != #????? | | ?????????????# ???# h %# ! = #????? | | ?????????????# #???#